bitfinex-derivatives/quotes_BTCF0:USTF0_20250729
["timestamp","ask_amount","ask_price","bid_price","bid_amount"]
[1753808933333,0.31461468,117880.0,117870.0,1.23416534]
[1753808934334,0.31461468,117880.0,117870.0,0.9915218]
[1753808934734,0.31461468,117880.0,117870.0,1.23416534]
[1753808936328,0.31461468,117880.0,117870.0,0.9915218]
[1753808936529,0.31461468,117880.0,117870.0,1.23416534]
[1753808936729,0.31461468,117880.0,117870.0,0.9915218]
[1753808937036,0.31461468,117880.0,117870.0,1.23416534]
[1753808940540,0.14492788,117880.0,117870.0,1.23416534]
[1753808940839,0.13616,117880.0,117870.0,1.23416534]
[1753808941339,0.3058467,117880.0,117870.0,0.9915218]
[1753808941640,0.9535903,117890.0,117880.0,0.6297167]
[1753808941833,0.9111714,117890.0,117880.0,1.23316024]
[1753808942133,1.00359466,117890.0,117880.0,1.23316024]
[1753808942338,0.36989204,117900.0,117890.0,0.2969423]
[1753808942339,0.3906605,117900.0,117890.0,0.2969423]
[1753808942534,1.0798605,117900.0,117890.0,1.23314584]
[1753808942733,1.0798605,117900.0,117890.0,0.9905023]
[1753808943235,1.0798605,117900.0,117890.0,0.6297023]
[1753808943435,1.0798605,117900.0,117890.0,0.9905023]
[1753808943634,0.9437005,117900.0,117890.0,0.9905023]
[1753808943836,0.9960705,117900.0,117890.0,0.9905023]
[1753808944040,0.82536,117900.0,117890.0,1.23314584]
[1753808944237,0.37258865,117910.0,117900.0,0.6296879]
[1753808944539,0.14472693,117910.0,117900.0,1.23313144]
[1753808944733,0.74153,117910.0,117900.0,1.23313144]
[1753808944933,0.69784322,117910.0,117900.0,1.23313144]
[1753808945132,0.68916,117910.0,117900.0,1.23313144]
[1753808945537,0.68916,117910.0,117900.0,1.11956054]
[1753808945742,0.68916,117910.0,117900.0,1.40278054]
[1753808946039,0.17758329,117920.0,117910.0,0.1696424]
[1753808946244,1.3924,117930.0,117920.0,0.100576]
[1753808946438,1.98343,117930.0,117920.0,0.96639954]
[1753808946942,2.2985341,117930.0,117920.0,0.96639954]
[1753808947343,2.2985341,117930.0,117920.0,0.96495954]
[1753808947543,1.1248941,117930.0,117920.0,0.96495954]
[1753808948246,0.5162941,117930.0,117920.0,0.96495954]
[1753808948447,1.0358,117930.0,117920.0,0.96639954]
[1753808948744,0.89031,117930.0,117920.0,0.96639954]
[1753808949145,1.0629241,117930.0,117920.0,0.96639954]
[1753808950443,1.0629241,117930.0,117920.0,0.723756]
[1753808950646,1.2084141,117930.0,117920.0,0.96639954]
[1753808951543,1.2054141,117930.0,117920.0,0.96739954]
[1753808951740,0.12802,117930.0,117920.0,0.96595954]
[1753808951945,0.89023,117930.0,117920.0,0.96739954]
[1753808952245,1.03572,117930.0,117920.0,0.96739954]
[1753808953354,1.2053337,117930.0,117920.0,0.96639954]
[1753808953548,1.2053337,117930.0,117920.0,0.96495954]
[1753808954251,1.2053337,117930.0,117920.0,1.03338654]
[1753808954744,1.2053337,117930.0,117920.0,0.96495954]
[1753808955153,1.2053337,117930.0,117920.0,0.722316]
[1753808957062,1.5661337,117930.0,117920.0,0.26094]
[1753808957261,1.5661337,117930.0,117910.0,0.1696426]
[1753808957262,0.718007,117920.0,117910.0,0.1696426]
[1753808957467,0.718007,117920.0,117910.0,0.4431226]
[1753808957468,0.96065054,117920.0,117910.0,0.4431226]
[1753808957766,0.718007,117920.0,117910.0,0.2753826]
[1753808957971,0.2520326,117910.0,117900.0,0.6152712]
[1753808958171,1.3221626,117910.0,117900.0,0.8887512]
[1753808958579,1.3221626,117910.0,117900.0,0.8910612]
[1753808958776,1.33093231,117910.0,117900.0,0.8910612]
[1753808960577,1.3221626,117910.0,117900.0,0.8920612]
[1753808961770,1.15252,117910.0,117900.0,0.8920612]
[1753808961979,0.20386,117910.0,117900.0,1.13614474]
[1753808962172,0.561481,117930.0,117920.0,0.1696281]
[1753808962476,1.37337203,117930.0,117920.0,1.04886164]
[1753808963074,1.37337203,117930.0,117920.0,0.8062181]
[1753808963879,0.6331881,117920.0,117910.0,0.9311343]
[1753808964080,0.87583164,117920.0,117910.0,0.9311343]
[1753808964476,0.87583164,117920.0,117910.0,0.5279247]
[1753808964677,0.87583164,117920.0,117910.0,0.4855165]
[1753808964877,0.6331881,117920.0,117910.0,0.4855165]
[1753808965079,0.6331881,117920.0,117910.0,0.8463165]
[1753808965274,0.6331881,117920.0,117910.0,0.4855165]
[1753808965676,0.6331881,117920.0,117910.0,0.27348]
[1753808966067,0.6331881,117920.0,117910.0,0.27448]
[1753808966275,0.87583164,117920.0,117910.0,0.27448]
[1753808966472,0.87583164,117920.0,117910.0,0.27679]
[1753808966874,0.6331881,117920.0,117910.0,0.27679]
[1753808967676,0.6331881,117920.0,117910.0,0.63759]
[1753808968374,0.6331881,117920.0,117910.0,0.27679]
[1753808969581,0.6331881,117920.0,117910.0,0.8072324]
[1753808971087,1.3220681,117920.0,117910.0,0.8072324]
[1753808976887,1.34188896,117920.0,117910.0,0.8072324]
[1753808978282,0.65300896,117920.0,117910.0,0.8072324]
[1753808978787,1.34184896,117920.0,117910.0,0.8072324]
[1753808981894,1.5844925,117920.0,117910.0,0.8072324]
[1753808982097,1.5844925,117920.0,117910.0,0.001]
[1753808982494,1.5844925,117920.0,117910.0,0.27448]
[1753808983297,1.5844925,117920.0,117910.0,0.4441224]
[1753808983592,1.5844925,117920.0,117910.0,0.8049224]
[1753808986599,1.34184896,117920.0,117910.0,0.8049224]
[1753808986903,1.3220281,117920.0,117910.0,0.8039224]
[1753808987603,1.34187226,117920.0,117910.0,0.8039224]
[1753808988504,1.34187226,117920.0,117910.0,0.4431224]
[1753808988802,1.34187226,117920.0,117910.0,0.8039224]
[1753808989702,1.34187506,117920.0,117910.0,0.8039224]
[1753808990999,1.34187506,117920.0,117910.0,0.63428]
[1753808991400,1.34187506,117920.0,117910.0,0.27348]
[1753808991796,1.34187506,117920.0,117910.0,0.63428]
[1753808992000,1.5845186,117920.0,117910.0,0.63428]
[1753808992195,1.08205506,117920.0,117910.0,1.04359584]
[1753808992401,1.08205506,117920.0,117910.0,1.04503584]
[1753808992402,1.01045506,117920.0,117910.0,1.04503584]
[1753808992706,0.9906081,117920.0,117910.0,1.04503584]
[1753808992910,1.0655381,117920.0,117910.0,1.04503584]
[1753808993208,0.9906081,117920.0,117910.0,1.04503584]
[1753808993801,0.82098,117920.0,117910.0,1.04503584]
[1753808994009,0.73859,117920.0,117910.0,1.04503584]
[1753808994507,0.73855,117920.0,117910.0,1.04503584]
[1753808995103,0.908177,117920.0,117910.0,1.04503584]
[1753808995705,1.060117,117920.0,117910.0,1.04503584]
[1753808997115,1.060117,117920.0,117910.0,1.04734584]
[1753808997416,1.060117,117920.0,117910.0,1.04590484]
[1753808997711,1.22546781,117920.0,117910.0,0.8032613]
[1753808998507,1.22546781,117920.0,117910.0,1.04590484]
[1753808999105,0.31636781,117920.0,117910.0,1.04590484]
[1753808999306,1.205527,117920.0,117910.0,1.04590484]
[1753809002111,1.0359,117920.0,117910.0,1.04590484]
[1753809002518,1.0359,117920.0,117910.0,1.04734484]
[1753809002814,1.2055269,117920.0,117910.0,0.8047013]
[1753809003018,1.0359,117920.0,117910.0,1.04734484]
[1753809003221,1.2055269,117920.0,117910.0,1.04734484]
[1753809003412,1.2055269,117920.0,117910.0,1.04590484]
[1753809004417,0.6325169,117920.0,117910.0,1.04590484]
[1753809004619,1.3210369,117920.0,117910.0,1.04590484]
[1753809005316,1.3210369,117920.0,117910.0,0.5304412]
[1753809005519,1.3210369,117920.0,117910.0,0.8005712]
[1753809005718,1.3210369,117920.0,117910.0,1.04552474]
[1753809008324,0.6325169,117920.0,117910.0,1.04552474]
[1753809008522,1.3209969,117920.0,117910.0,1.04552474]
[1753809011520,1.3209969,117920.0,117910.0,0.8028812]
[1753809011726,1.3209969,117920.0,117910.0,1.04552474]
[1753809011920,1.3209969,117920.0,117910.0,0.8028812]
[1753809012120,1.3209969,117920.0,117910.0,0.8005712]
[1753809013028,1.3209969,117920.0,117910.0,1.04321474]
[1753809013423,1.3209969,117920.0,117910.0,0.8005712]
[1753809014130,1.3209969,117920.0,117910.0,1.04321474]
[1753809014631,1.3209969,117920.0,117910.0,0.8005712]
[1753809016430,1.3209969,117920.0,117910.0,0.3608]
[1753809016631,1.56364044,117920.0,117910.0,0.530441]
[1753809017535,1.58347925,117920.0,117910.0,0.530441]
[1753809017737,1.34083571,117920.0,117910.0,0.804251]
[1753809027046,1.3209969,117920.0,117910.0,0.804251]
[1753809035055,1.1996569,117920.0,117910.0,1.04689454]
[1753809037854,1.1996569,117920.0,117910.0,0.806561]
[1753809038054,1.1996569,117920.0,117910.0,1.04920454]
[1753809038256,0.6267169,117920.0,117910.0,1.04920454]
[1753809038447,1.3149169,117920.0,117910.0,1.04920454]
[1753809040160,1.3149169,117920.0,117910.0,0.806561]
[1753809043356,1.3149169,117920.0,117910.0,1.04920454]
[1753809043759,1.3149169,117920.0,117910.0,0.806561]
[1753809049460,1.3149169,117920.0,117910.0,1.04920454]
[1753809050465,1.3149169,117920.0,117910.0,0.806561]
[1753809050667,1.3149169,117920.0,117910.0,1.04920454]
[1753809053260,1.3149169,117920.0,117910.0,0.806561]
[1753809054259,0.81854,117920.0,117910.0,1.04920454]
[1753809054562,0.8185,117920.0,117910.0,1.05064454]
[1753809055065,0.88943,117920.0,117910.0,1.05064454]
[1753809055868,0.88943,117920.0,117910.0,0.808001]
[1753809056065,0.88943,117920.0,117910.0,1.05064454]
[1753809057168,1.02585,117920.0,117910.0,1.05064454]
[1753809057368,1.02585,117920.0,117910.0,1.12644314]
[1753809057763,0.5075166,117920.0,117910.0,1.12644314]
[1753809057969,1.1953966,117920.0,117910.0,0.806561]
[1753809059369,1.1953966,117920.0,117910.0,1.04920454]
[1753809060470,0.7608332,117920.0,117910.0,1.08635854]
[1753809060771,0.2502966,117920.0,117910.0,1.13187854]
[1753809061068,0.2502966,117920.0,117910.0,1.29354854]
[1753809061771,0.08067,117920.0,117910.0,1.050905]
[1753809062071,0.08067,117920.0,117910.0,1.29354854]
[1753809062471,0.20048,117920.0,117910.0,1.29354854]
[1753809063272,0.3701065,117920.0,117910.0,1.29354854]
[1753809063473,0.20048,117920.0,117910.0,1.29354854]
[1753809066278,0.3701065,117920.0,117910.0,1.29354854]
[1753809066575,0.20048,117920.0,117910.0,1.29354854]
[1753809068780,0.1516,117920.0,117910.0,1.29354854]
[1753809070380,0.08067,117920.0,117910.0,1.29354854]
[1753809071583,0.2545334,117930.0,117920.0,0.6335966]
[1753809071882,0.4061334,117930.0,117920.0,1.92472014]
[1753809072084,0.4550134,117930.0,117920.0,1.92472014]
[1753809072783,0.4550134,117930.0,117920.0,1.95413086]
[1753809072983,0.4550134,117930.0,117920.0,1.6820766]
[1753809073179,0.4560134,117930.0,117920.0,1.95413086]
[1753809073985,0.72806766,117930.0,117920.0,1.95413086]
[1753809074185,0.4560134,117930.0,117920.0,1.6820766]
[1753809074385,0.4560134,117930.0,117920.0,1.95413086]
[1753809075878,0.0011,117930.0,117920.0,1.95413086]
[1753809076085,0.1707122,117930.0,117920.0,1.95413086]
[1753809076678,0.1707122,117930.0,117920.0,2.22618512]
[1753809076679,0.0011,117930.0,117920.0,2.22618512]
[1753809077478,0.0011,117930.0,117920.0,1.95413086]
[1753809078984,0.0011,117930.0,117920.0,1.92384823]
[1753809080184,0.0011,117930.0,117920.0,1.93263826]
[1753809081785,0.0011,117930.0,117920.0,2.00211665]
[1753809085993,0.0011,117930.0,117920.0,1.76034502]
[1753809086294,0.0011,117930.0,117920.0,2.00211665]
[1753809091700,0.0001,117930.0,117920.0,2.00311665]
[1753809092793,0.1697122,117930.0,117920.0,2.00311665]
[1753809093699,0.0001,117930.0,117920.0,2.00311665]
[1753809095096,0.1697122,117930.0,117920.0,2.00311665]
[1753809095700,0.2167622,117930.0,117920.0,1.30664662]
[1753809096002,0.3666422,117930.0,117920.0,1.75199499]
[1753809096196,0.3666422,117930.0,117920.0,1.06487499]
[1753809096403,0.60841383,117930.0,117920.0,1.75199499]
[1753809096790,0.60841383,117930.0,117920.0,1.06487499]
[1753809096995,0.60841383,117930.0,117920.0,0.9953966]
[1753809097199,0.60841383,117930.0,117920.0,1.6825166]
[1753809097694,0.3666422,117930.0,117920.0,1.6825166]
[1753809098000,0.3666422,117930.0,117920.0,1.6815166]
[1753809098200,0.3666422,117930.0,117920.0,1.6814766]
[1753809098896,0.3676422,117930.0,117920.0,1.6814766]
[1753809099396,0.1707122,117930.0,117920.0,1.92324823]
[1753809099606,0.0011,117930.0,117920.0,1.92324823]
[1753809100503,0.1707122,117930.0,117920.0,1.92324823]
[1753809100903,0.0001,117930.0,117920.0,1.92324823]
[1753809101502,0.1697121,117930.0,117920.0,1.92324823]
[1753809101899,0.1697121,117930.0,117920.0,1.92424823]
[1753809102102,0.0001,117930.0,117920.0,1.92424823]
[1753809103904,0.1697122,117930.0,117920.0,1.92424823]
[1753809104597,0.0001,117930.0,117920.0,1.92424823]
[1753809105202,0.0001,117930.0,117920.0,1.9916955]
[1753809117510,8.2119921,117950.0,117920.0,1.84887376]
[1753809117811,8.3014788,117950.0,117940.0,1.06194943]
[1753809118012,8.3014788,117950.0,117940.0,1.74870943]
[1753809118912,8.3763488,117950.0,117940.0,1.74870943]
[1753809120708,8.3763488,117950.0,117940.0,1.65483228]
[1753809120909,8.3773488,117950.0,117940.0,1.89660391]
[1753809121212,8.04809,117950.0,117940.0,1.89660391]
[1753809121413,8.001,117950.0,117940.0,1.9156126]
[1753809125519,8.001,117950.0,117940.0,2.0851806]
[1753809125720,7.93901206,117950.0,117940.0,2.1609792]
[1753809125915,7.85559296,117950.0,117940.0,2.1609792]
[1753809126109,7.73921606,117950.0,117940.0,2.0851806]
[1753809126312,7.73921606,117950.0,117940.0,2.16059409]
[1753809128014,7.73921606,117950.0,117940.0,2.0851806]
[1753809129422,7.78630606,117950.0,117940.0,2.0851806]
[1753809133634,7.86117606,117950.0,117940.0,1.9156126]
[1753809134824,7.93805606,117950.0,117940.0,1.9156126]
[1753809136725,7.93805606,117950.0,117940.0,1.99102609]
[1753809136923,7.93805606,117950.0,117940.0,1.9156126]
[1753809138224,7.93805606,117950.0,117940.0,1.8888826]
[1753809141832,7.93805606,117950.0,117940.0,1.96429609]
[1753809144131,7.93805606,117950.0,117940.0,1.8888826]
[1753809144644,6.93805606,117950.0,117940.0,1.8888826]
[1753809145442,6.93805606,117950.0,117940.0,3.0615226]
[1753809147250,6.93805606,117950.0,117940.0,3.13693609]
[1753809151452,6.93805606,117950.0,117940.0,3.0615226]
[1753809151855,6.93805606,117950.0,117940.0,3.13702244]
[1753809153848,6.93805606,117950.0,117940.0,3.0615226]
[1753809155247,6.93805606,117950.0,117940.0,2.8219326]
[1753809155954,6.93805606,117950.0,117940.0,2.8763026]
[1753809156455,6.93805606,117950.0,117940.0,2.8219326]
[1753809157252,6.93805606,117950.0,117940.0,2.8763026]
[1753809159853,6.93805606,117950.0,117940.0,2.63453097]
[1753809160054,6.93805606,117950.0,117940.0,2.8763026]
[1753809164663,6.93805606,117950.0,117940.0,2.98229345]
[1753809164956,6.93805606,117950.0,117940.0,2.07850345]
[1753809165156,7.10763966,117950.0,117940.0,2.52245182]
[1753809165656,6.93805606,117950.0,117940.0,2.76422345]
[1753809167260,6.93805606,117950.0,117940.0,2.6582326]
[1753809167857,6.93805606,117950.0,117940.0,2.41646097]
[1753809168060,6.93805606,117950.0,117940.0,2.6582326]
[1753809170459,6.93805606,117950.0,117940.0,2.8286726]
[1753809172164,6.93805606,117950.0,117940.0,2.8830426]
[1753809172465,6.85910606,117950.0,117940.0,3.09084356]
[1753809172967,6.93598606,117950.0,117940.0,2.98485271]
[1753809175760,6.93598606,117950.0,117940.0,2.95864271]
[1753809175961,6.93598606,117950.0,117940.0,2.8830426]
[1753809177463,6.93598606,117950.0,117940.0,2.9092526]
[1753809177662,6.93598606,117950.0,117940.0,2.8830426]
[1753809178170,6.93598606,117950.0,117940.0,3.1529426]
[1753809178870,6.93598606,117950.0,117940.0,3.25873333]
[1753809179970,6.93598606,117950.0,117940.0,2.9281326]
[1753809180174,6.93598606,117950.0,117940.0,2.68636097]
[1753809180363,6.93598606,117950.0,117940.0,2.9281326]
[1753809180775,6.93598606,117950.0,117940.0,2.9278926]
[1753809182272,6.93598606,117950.0,117940.0,3.0983326]
[1753809182466,6.93598606,117950.0,117940.0,2.85656097]
[1753809182662,6.93598606,117950.0,117940.0,3.0983326]
[1753809185080,6.93598606,117950.0,117940.0,2.9278926]
[1753809185472,6.93598606,117950.0,117940.0,3.00347904]
[1753809186074,6.93598606,117950.0,117940.0,2.9278926]
[1753809187775,6.93598606,117950.0,117940.0,3.00346308]
[1753809188474,6.93598606,117950.0,117940.0,2.31798308]
[1753809188674,6.93598606,117950.0,117940.0,3.0982126]
[1753809189075,6.93598606,117950.0,117940.0,2.8283126]
[1753809189481,6.93598606,117950.0,117940.0,2.8826826]
[1753809193483,6.93598606,117950.0,117940.0,2.9088926]
[1753809195086,6.93598606,117950.0,117940.0,3.25838128]
[1753809197481,6.93598606,117950.0,117940.0,3.1525826]
[1753809198989,6.93598606,117950.0,117940.0,3.2583225]
[1753809203094,6.93598606,117950.0,117940.0,3.0335125]
[1753809204689,6.93598606,117950.0,117940.0,2.79174087]
[1753809204896,6.93598606,117950.0,117940.0,3.0332325]
[1753809205091,6.93598606,117950.0,117940.0,2.9274926]
[1753809206496,6.93598606,117950.0,117940.0,3.00308262]
[1753809206897,6.93598606,117950.0,117940.0,2.73318262]
[1753809208696,6.93598606,117950.0,117940.0,2.6575926]
[1753809209295,6.93598606,117950.0,117940.0,2.73317087]
[1753809211700,6.93598606,117950.0,117940.0,2.90520087]
[1753809212289,6.77716526,117950.0,117940.0,2.90520087]
[1753809212491,6.85404526,117950.0,117940.0,3.12576423]
[1753809212699,6.85404526,117950.0,117940.0,3.0159425]
[1753809212906,6.85404526,117950.0,117940.0,3.2858425]
[1753809215604,6.85404526,117950.0,117940.0,3.1801026]
[1753809215903,6.85404526,117950.0,117940.0,3.1538926]
[1753809217199,6.85404526,117950.0,117940.0,3.25963143]
[1753809219100,6.85404526,117950.0,117940.0,3.1538926]
[1753809221103,6.85404526,117950.0,117940.0,3.2596027]
[1753809224796,6.85404526,117950.0,117940.0,3.25960479]
[1753809226005,6.73007526,117950.0,117940.0,3.25960479]
[1753809226206,5.63358636,117950.0,117940.0,3.42725442]
[1753809226410,5.13691406,117950.0,117940.0,3.4726832]
[1753809226607,4.69742506,117950.0,117940.0,3.4726832]
[1753809226811,4.47183816,117950.0,117940.0,3.4726832]
[1753809227005,4.41595876,117950.0,117940.0,3.4726832]
[1753809227210,4.2021359,117950.0,117940.0,3.4726832]
[1753809227411,3.3762544,117950.0,117940.0,3.4726832]
[1753809227611,3.3585048,117950.0,117940.0,3.4726832]
[1753809227906,3.3585048,117950.0,117940.0,3.32154223]
[1753809229008,2.6032996,117950.0,117940.0,3.32154223]
[1753809229510,2.6032996,117950.0,117940.0,3.0797706]
[1753809229908,2.6718496,117950.0,117940.0,3.0797706]
[1753809230308,2.6718496,117950.0,117940.0,3.23091157]
[1753809232707,2.5170764,117950.0,117940.0,3.23091157]
[1753809232909,2.4442155,117950.0,117940.0,3.0797706]
[1753809233213,2.2919551,117950.0,117940.0,3.0797706]
[1753809233513,2.184463,117950.0,117940.0,3.0797706]
[1753809233710,2.253013,117950.0,117940.0,2.98913994]
[1753809233909,2.253013,117950.0,117940.0,3.23091157]
[1753809234111,2.1530964,117950.0,117940.0,3.23091157]
[1753809235211,1.99277059,117950.0,117940.0,3.0797706]
[1753809235407,1.97677244,117950.0,117940.0,3.0797706]
[1753809235611,1.97677244,117950.0,117940.0,2.9102026]
[1753809235811,1.90822244,117950.0,117940.0,3.06100498]
[1753809236009,1.90822244,117950.0,117940.0,2.81923335]
[1753809236211,1.97677244,117950.0,117940.0,3.06100498]
[1753809236409,1.91024584,117950.0,117940.0,3.06100498]
[1753809237212,1.98712584,117950.0,117940.0,3.06100498]
[1753809237521,1.95560674,117950.0,117940.0,3.06100498]
[1753809237714,1.90632464,117950.0,117940.0,3.06100498]
[1753809238020,1.77879344,117950.0,117940.0,3.06100498]
[1753809238818,1.75106014,117950.0,117940.0,3.06100498]
[1753809239021,1.64978774,117950.0,117940.0,3.1801026]
[1753809239215,1.60184824,117950.0,117940.0,3.1801026]
[1753809239415,1.51988324,117950.0,117940.0,2.9102026]
[1753809239618,1.29388404,117950.0,117940.0,2.9102026]
[1753809239921,1.07915887,117950.0,117940.0,2.9102026]
[1753809240121,7e-08,117950.0,117940.0,2.9102026]
[1753809240424,0.04962007,117950.0,117940.0,2.9102026]
[1753809240614,0.14831007,117950.0,117940.0,2.66843097]
[1753809240814,0.14831007,117950.0,117940.0,2.9102026]
[1753809242015,0.33936007,117950.0,117940.0,2.9102026]
[1753809242921,0.33936007,117950.0,117940.0,2.90994485]
[1753809243919,0.33936007,117950.0,117940.0,2.8189756]
[1753809244224,0.22519007,117950.0,117940.0,3.06074723]
[1753809247123,0.06486759,117950.0,117940.0,3.06074723]
[1753809247324,0.14462759,117950.0,117940.0,3.06074723]
[1753809247814,0.24840759,117950.0,117940.0,2.67717322]
[1753809248214,0.24840759,117950.0,117940.0,2.91894485]
[1753809248410,0.43153127,117970.0,117960.0,0.63911864]
[1753809248622,0.18975964,117970.0,117960.0,2.21259864]
[1753809248818,0.43153127,117970.0,117960.0,2.18212864]
[1753809249124,0.71269127,117970.0,117960.0,0.91042314]
[1753809249317,0.85107527,117970.0,117960.0,0.1695704]
[1753809249516,0.85107527,117970.0,117960.0,0.8636904]
[1753809249916,0.85307527,117970.0,117960.0,0.8636904]
[1753809251523,0.61130364,117970.0,117960.0,0.8636904]
[1753809251725,0.85307527,117970.0,117960.0,0.8636904]
[1753809252724,1.38343117,117970.0,117960.0,0.8636904]
[1753809252926,1.63361062,117970.0,117960.0,0.1695704]
[1753809253126,1.71839072,117970.0,117960.0,0.8636103]
[1753809253624,1.43422829,117970.0,117960.0,0.8636103]
[1753809258627,1.19245666,117970.0,117960.0,0.8636103]
[1753809258833,1.67599992,117970.0,117960.0,0.8636103]
[1753809259236,1.43422829,117970.0,117960.0,0.8636103]
[1753809260034,1.43422829,117970.0,117960.0,0.1695703]
[1753809260233,1.67599992,117970.0,117960.0,0.69556]
[1753809260635,1.67599992,117970.0,117960.0,0.8651304]
[1753809261336,1.43422829,117970.0,117960.0,0.8651304]
[1753809261931,1.43422829,117970.0,117960.0,0.9112204]
[1753809262242,1.18422829,117970.0,117960.0,0.9112204]
[1753809263641,1.17582047,117970.0,117960.0,0.9112204]
[1753809265439,1.17582047,117970.0,117960.0,1.3346804]
[1753809265440,0.64547647,117970.0,117960.0,1.3346804]
[1753809265640,0.00821964,117970.0,117960.0,1.3346804]
[1753809265836,0.00821964,117970.0,117960.0,1.6954804]
[1753809268542,0.24999127,117970.0,117960.0,1.6954804]
[1753809269139,0.00821964,117970.0,117960.0,1.6954804]
[1753809269742,0.24999127,117970.0,117960.0,1.6954804]
[1753809270543,0.41954697,117970.0,117960.0,1.6954804]
[1753809270843,0.24999127,117970.0,117960.0,1.6954804]
[1753809271440,0.41954697,117970.0,117960.0,1.3359204]
[1753809272043,0.78034697,117970.0,117960.0,0.3996504]
[1753809272240,0.78034697,117970.0,117960.0,0.12385]
[1753809272444,1.1916626,117970.0,117960.0,0.74305]
[1753809272845,0.94989097,117970.0,117960.0,0.91262]
[1753809273846,0.94989097,117970.0,117960.0,0.74305]
[1753809274250,0.94989097,117970.0,117960.0,0.9126201]
[1753809274948,0.94989097,117970.0,117960.0,1.0781301]
[1753809275740,0.78034697,117970.0,117960.0,1.0792901]
[1753809276456,0.78034697,117970.0,117960.0,0.9137801]
[1753809277152,1.1916626,117970.0,117960.0,0.9137801]
[1753809277351,0.70811934,117970.0,117960.0,0.9137801]
[1753809277547,0.94989097,117970.0,117960.0,0.9137801]
[1753809277751,0.94989097,117970.0,117960.0,1.3372401]
[1753809277953,0.78033527,117970.0,117960.0,1.3372401]
[1753809278160,0.61079127,117970.0,117960.0,1.3372401]
[1753809278359,0.00821964,117970.0,117960.0,1.3372401]
[1753809279061,0.24999127,117970.0,117960.0,1.3372401]
[1753809280253,0.00821964,117970.0,117960.0,1.3372401]
[1753809280459,0.00821964,117970.0,117960.0,1.93981173]
[1753809280653,0.00821964,117970.0,117960.0,1.6980401]
[1753809284750,0.41953817,117970.0,117960.0,1.6980401]
[1753809285154,0.41953817,117970.0,117960.0,1.6997113]
[1753809285361,0.24999127,117970.0,117960.0,1.6997113]
[1753809286955,0.00821964,117970.0,117960.0,1.6997113]
[1753809292465,0.00821964,117970.0,117960.0,1.94148293]
[1753809295663,0.00821964,117970.0,117960.0,1.6997113]
[1753809295867,0.00821964,117970.0,117960.0,1.94148293]
[1753809297166,0.00821964,117970.0,117960.0,1.6997113]
[1753809305270,0.00821964,117970.0,117960.0,2.8721913]
[1753809309375,0.00821964,117970.0,117960.0,2.97776629]
[1753809310172,0.00821964,117970.0,117960.0,2.8721913]
[1753809311170,0.24999127,117970.0,117960.0,2.8721913]
[1753809311366,0.00821964,117970.0,117960.0,2.8721913]
[1753809315578,0.00821964,117970.0,117960.0,2.1723913]
[1753809315777,0.00821964,117970.0,117960.0,2.8703913]
[1753809316381,0.00821964,117970.0,117960.0,3.11216293]
[1753809316871,0.00821964,117970.0,117960.0,2.8703913]
[1753809323777,0.00821964,117970.0,117960.0,2.97596629]
[1753809327378,0.00821964,117970.0,117960.0,2.8703913]
[1753809336789,0.24999127,117970.0,117960.0,2.1723913]
[1753809336980,0.24999127,117970.0,117960.0,2.8681113]
[1753809338084,0.24999127,117970.0,117960.0,2.8681513]
[1753809339195,0.24999127,117970.0,117960.0,2.8688713]
[1753809340990,0.24999127,117970.0,117960.0,2.1723913]
[1753809341195,0.24999127,117970.0,117960.0,2.8692313]
[1753809342097,0.24999127,117970.0,117960.0,2.5084313]
[1753809342296,0.24999127,117970.0,117960.0,2.2689613]
[1753809342297,1.1916534,117970.0,117960.0,2.2689613]
[1753809342497,0.94988177,117970.0,117960.0,1.2686613]
[1753809342696,0.94988177,117970.0,117960.0,1.3396113]
[1753809343494,1.1916534,117970.0,117960.0,0.5718213]
[1753809343693,1.1916534,117970.0,117960.0,1.2687013]
[1753809343987,0.94988177,117970.0,117960.0,0.6425813]
[1753809344195,0.94988177,117970.0,117960.0,1.3393413]
[1753809344593,1.1916534,117970.0,117960.0,1.3393413]
[1753809344794,0.94988177,117970.0,117960.0,1.3393413]
[1753809344995,1.41141711,117970.0,117950.0,0.19502]
[1753809345198,0.43047352,117960.0,117950.0,0.6498333]
[1753809345394,0.43047352,117960.0,117950.0,1.3463133]
[1753809345595,0.85003352,117960.0,117950.0,0.9084433]
[1753809345901,0.83089253,117960.0,117950.0,0.9084433]
[1753809346199,0.83089253,117960.0,117950.0,1.2312233]
[1753809346492,0.83089253,117960.0,117950.0,1.1888297]
[1753809346691,0.1695753,117950.0,117940.0,0.8101909]
[1753809346891,0.41134693,117950.0,117940.0,1.06595]
[1753809347203,0.58091493,117950.0,117940.0,0.74479]
[1753809347802,0.58091493,117950.0,117940.0,0.9143797]
[1753809348002,0.58091493,117950.0,117940.0,1.1663997]
[1753809348200,0.58091493,117950.0,117940.0,1.2371597]
[1753809350399,0.3391433,117950.0,117940.0,1.2371597]
[1753809350801,0.58091493,117950.0,117940.0,1.2371597]
[1753809351797,0.3391433,117950.0,117940.0,1.2371597]
[1753809352003,0.58091493,117950.0,117940.0,1.2371597]
[1753809352303,0.3391433,117950.0,117940.0,1.2371597]
[1753809352601,0.58091493,117950.0,117940.0,1.2371597]
[1753809356395,0.58091493,117950.0,117940.0,1.06757]
[1753809358600,0.41134693,117950.0,117940.0,1.06757]
[1753809358810,0.58091493,117950.0,117940.0,1.06757]
[1753809359306,0.58091493,117950.0,117940.0,1.2371597]
[1753809359708,0.41134693,117950.0,117940.0,1.2371597]
[1753809359907,0.41134693,117950.0,117940.0,1.06757]
[1753809360507,0.41134693,117950.0,117940.0,1.2371596]
[1753809361008,0.41134693,117950.0,117940.0,1.06757]
[1753809361606,0.41134693,117950.0,117940.0,1.2371596]
[1753809362308,0.1695753,117950.0,117940.0,1.2371596]
[1753809362507,0.41134693,117950.0,117940.0,1.2371596]
[1753809363912,0.41134693,117950.0,117940.0,1.06757]
[1753809364708,0.77214693,117950.0,117940.0,1.06757]
[1753809364904,0.5303753,117950.0,117940.0,1.06757]
[1753809365099,0.94171493,117950.0,117940.0,0.48382]
[1753809367201,0.9634251,117950.0,117940.0,0.48382]
[1753809367602,0.7938571,117950.0,117940.0,0.48382]
[1753809367908,0.9634251,117950.0,117940.0,0.48382]
[1753809368610,0.7938571,117950.0,117940.0,0.48382]
[1753809368811,0.9634251,117950.0,117940.0,0.48382]
[1753809369209,0.7938571,117950.0,117940.0,0.48382]
[1753809369420,0.9634251,117950.0,117940.0,0.48382]
[1753809371507,0.9634251,117950.0,117940.0,0.04595]
[1753809373017,0.1696043,117930.0,117920.0,1.13507]
[1753809373217,0.7938861,117930.0,117920.0,1.13507]
[1753809373411,0.7938861,117930.0,117920.0,0.48382]
[1753809373912,0.7938861,117930.0,117920.0,0.47624]
[1753809374617,0.55211447,117930.0,117920.0,0.47624]
[1753809374920,0.7938861,117930.0,117920.0,0.47624]
[1753809375219,0.7938861,117930.0,117920.0,0.47824]
[1753809378822,0.77217593,117930.0,117920.0,0.47824]
[1753809379013,0.79394173,117930.0,117920.0,0.47824]